Cogmind - Beta 9.2 @@@ ROGUE MODE // 2019.11.16 @ 07:41:42 Player: Demise Result: Destroyed self with Mini Grenade Launcher Performance ------------- Evolutions (0) 0 Regions Visited (2) 400 Robots Destroyed (26) 130 Value Destroyed (142) 142 Prototype IDs (0) 0 Alien Tech Used (0) 0 Bonus (0) 0 TOTAL SCORE: 672 Bonus ------- None Cogmind --------- Core Integrity 0/250 Matter 99/300 Energy 52/100 System Corruption 5% Temperature Cool (32) Movement Walking (150) Ox1 Location -10/Mines Parts ------- > --- POWER (1) -------- (None) > --- PROPULSION (2) --- Aluminum Leg > --- UTILITY (2) ------ Medium Storage Unit Hardened Light Armor Plating > --- WEAPON (2) ------- Mini Grenade Launcher > --- INVENTORY (8) ---- Small Storage Unit High-capacity Storage Unit Medium Battery (200) Medium Matter Pod (82) Improved Terrain Scanner Seismic Analyzer Particle Gun Mining Laser Peak State ------------ > --- POWER ------------ Light Ion Engine > --- PROPULSION ------- Wheel Flight Unit > --- UTILITY ---------- High-capacity Storage Unit Hardened Light Armor Plating > --- WEAPON ----------- Autogun Autogun > --- INVENTORY -------- Small Storage Unit Medium Storage Unit Large Storage Unit Large Storage Unit Medium Battery Medium Matter Pod Improved Terrain Scanner Seismic Analyzer Mini Grenade Launcher Mining Laser [Rating: 11] Favorites ----------- Power Light Ion Engine Engine Light Ion Engine Propulsion Wheel Leg Aluminum Leg Wheel Wheel Flight Unit Flight Unit Utility Improved Terrain Scanner Device Improved Terrain Scanner Storage Small Storage Unit Protection Hardened Light Armor Plating Weapon Autogun Energy Gun EM Pulse Gun Ballistic Gun Autogun Launcher Mini Grenade Launcher Special Weapon Mining Laser Build | -11 -10 -10 ------- Run | Scr Mat Min Slots Evolved . | . . . Power . | . . . Propulsion . | . . . Utility . | . . . Weapon . | . . . Parts Attached 31 | 6 15 10 Power 3 | 1 2 . Engine 3 | 1 2 . Core . | . . . Reactor . | . . . Propulsion 6 | 2 1 3 Treads . | . . . Leg 2 | . . 2 Wheel 2 | 2 . . Hover . | . . . Flight 2 | . 1 1 Utility 10 | 1 6 3 Device 2 | 1 . 1 Storage 4 | . 3 1 Processor . | . . . Hackware . | . . . Protection 4 | . 3 1 Artifact . | . . . Weapon 12 | 2 6 4 Energy Gun 2 | 1 . 1 Energy Cannon . | . . . Ballistic Gun 6 | 1 4 1 Ballistic Cannon . | . . . Launcher 3 | . 1 2 Special Weapon 1 | . 1 . Impact Weapon . | . . . Slashing Weapon . | . . . Piercing Weapon . | . . . Special Melee Weapon . | . . . Unidentified Prototypes . | . . . Parts Lost 5 | . 1 4 Power 1 | . . 1 Propulsion 2 | . 1 1 Utility . | . . . Weapon 2 | . . 2 Highest Loss Streak 4 | . 1 4 Average Slot Usage (%) 98 | . 98 97 Engine 13 | . 14 13 Leg 1 | . . 5 Wheel 14 | . 20 . Flight 10 | . 6 21 Device 7 | . 6 11 Storage 12 | . 11 14 Protection 7 | . 9 2 Energy Gun 4 | . 5 . Ballistic Gun 19 | . 17 26 Launcher 1 | . 2 . Special Weapon 1 | . 2 . Naked Turns . | . . . Heaviest Build 46 | 7 46 46 Greatest Support 20 | 20 20 20 Greatest Overweight (x) 4 | . 4 4 Average Overweight (x) 1 | . 1 2 Largest Inventory Capacity 12 | 4 12 12 Average Capacity 7 | 4 7 8 Most Carried 12 | 4 12 12 Average Carried 6 | 3 6 8 Final Capacity 12 | 4 12 8 Final Carried 12 | 4 12 8 Class Distribution -------------------- 96% | Mutant 3% | Scavenger-Mutant Dominant Class ---------------- Mutant | -10/Materials Mutant | -10/Mines Resources | -11 -10 -10 ----------- Run | Scr Mat Min Matter Collected 781 | 358 226 197 Remotely . | . . . Salvage Created 481 | 255 97 129 Parts 28 | 16 7 5 Haulers Intercepted . | . . . Recyclers Shooed 1 | 1 . . Parts Field Recycled . | . . . Retrieved Matter . | . . . Parts Self-Destructed . | . . . Prevented . | . . . Kills | -11 -10 -10 ------- Run | Scr Mat Min Combat Hostiles Destroyed 17 | . 4 13 Guns 12 | . 3 9 AOE 5 | . 1 4 Classes Destroyed 7 | 3 3 1 Worker 2 | 2 . . Builder 1 | . 1 . Tunneler 5 | 5 . . Recycler 1 | 1 . . Swarmer 6 | . 3 3 Grunt 1 | . 1 . Assembled 10 | . . 10 Best Kill Streak 4 | 3 3 4 Combat Bots Only 4 | . 3 4 Max Kills in Single Turn 3 | 1 2 3 Gunslinging . | . . . Exploded 3 | . 1 3 Melee . | . . . Uniques/NPCs Destroyed . | . . . Combat | -11 -10 -10 -------- Run | Scr Mat Min Damage Taken 895 | . 214 681 Core 251 | . 52 199 Absorbed by Shields . | . . . Core Remaining (%) 100 | 100 . . Volleys Fired 81 | 29 13 39 Largest 2 | 2 2 2 Hottest 100 | 60 100 88 Shots Fired 142 | 52 23 67 Gun 134 | 52 17 65 Cannon . | . . . Launcher 5 | . 3 2 Special 3 | . 3 . Kinetic 102 | 23 17 62 Thermal 6 | . 3 3 Explosive 5 | . 3 2 Electromagnetic 29 | 29 . . Robot Hit Streak 9 | 8 6 9 Robot Miss Streak 5 | 4 2 5 Penetration Max . | . . . Secondary Targets 1 | . . 1 Max Gunslinging Chain 1 | . . 1 Shots Hit Robots 80 | 30 13 37 Core Hits 41 | 12 7 22 Critical Hits . | . . . Critical Kills . | . . . Critical Parts Destroyed . | . . . Melee Attacks . | . . . Impact . | . . . Slashing . | . . . Piercing . | . . . Sneak Attacks . | . . . Combat Hostiles . | . . . Follow-up Attacks . | . . . Damage Inflicted 1407 | 327 298 782 Guns 1008 | 327 127 554 Cannons . | . . . Explosions 399 | . 171 228 Melee . | . . . Ramming . | . . . Kinetic 722 | 86 127 509 Thermal 45 | . . 45 Explosive 399 | . 171 228 Electromagnetic 241 | 241 . . Impact . | . . . Slashing . | . . . Piercing . | . . . Highest Corruption 5 | . . 5 Average Corruption 5 | . . 5 Corruption Purged . | . . . Effects 1 | . . 1 Message Errors 1 | . . 1 Overload Shots . | . . . Overflow Damage 17 | . 17 . Projectiles . | . . . Explosions 17 | . 17 . Melee . | . . . Knockbacks . | . . . Impact . | . . . Kinetic . | . . . Secondary . | . . . Self-Inflicted Damage 76 | . 30 46 Shots 2 | . 1 1 Rammed . | . . . Targets Rammed . | . . . Kicked . | . . . Crushed . | . . . Highest Temperature 126 | 80 75 126 Average Temperature 32 | 32 30 33 Received Heat Transfer 212 | . 72 140 Siege Activations . | . . . Robots Corrupted . | . . . Combat Hostiles . | . . . Parts Fried 1 | 1 . . Impact Corruptions . | . . . Robots Melted . | . . . Combat Hostiles . | . . . Parts Melted . | . . . Heat Transferred 111 | . . 111 Parts Sabotaged . | . . . Parts Stolen . | . . . Parts Stripped . | . . . Power Chain Reactions . | . . . Missiles Intercepted . | . . . Alert | -11 -10 -10 ------- Run | Scr Mat Min Peak Influence 103 | 40 85 103 Average Influence 51 | 19 40 100 Maximum Alert Level . | . . . Low Security (%) 100 | 100 100 100 Level 1 . | . . . Level 2 . | . . . Level 3 . | . . . Level 4 . | . . . Level 5 . | . . . High Security . | . . . Max Security . | . . . Squads Dispatched . | . . . Investigation . | . . . Extermination . | . . . Reinforcement . | . . . Assault . | . . . Garrison . | . . . Intercept . | . . . Construction Impeded . | . . . Haulers Reinforced . | . . . Stealth | -11 -10 -10 --------- Run | Scr Mat Min Distress Signals . | . . . Communications Jammed . | . . . Distress Signals . | . . . Times Spotted 28 | . 11 17 Peak Tracking Total 5 | . 4 5 Tactical Retreats 4 | . 2 2 Traps | -11 -10 -10 ------- Run | Scr Mat Min Traps Triggered 1 | . 1 . Indirectly . | . . . Trap Hack Attempts . | . . . Triggered . | . . . Disarmed . | . . . Reprogrammed . | . . . Reused . | . . . Traps Extracted . | . . . Installed . | . . . Triggered . | . . . Machines | -11 -10 -10 ---------- Run | Scr Mat Min Machines Disabled . | . . . Max in Single Turn . | . . . Machines Sabotaged . | . . . Garrisons Compromised . | . . . Overloaded Fab Kills . | . . . Fab Network Shutdowns . | . . . Hacking | -11 -10 -10 --------- Run | Scr Mat Min Machines Accessed 7 | . 7 . Terminals 5 | . 5 . Fabricators . | . . . Repair Stations 1 | . 1 . Recycling Units 1 | . 1 . Scanalyzers . | . . . Garrison Access . | . . . Total Hacks 17 | . 17 . Successful 9 | . 9 . Failed 8 | . 8 . Catastrophic 1 | . 1 . Database Lockouts . | . . . Manual 13 | . 13 . Terminals 14 | . 14 . Fabricators . | . . . Repair Stations 2 | . 2 . Recycling Units 1 | . 1 . Scanalyzers . | . . . Garrison Access . | . . . Terminal Hacks 1 | . 1 . Branch Access Points 1 | . 1 . Fabricator Hacks . | . . . Repair Station Hacks 2 | . 2 . Scan Component 1 | . 1 . Repair 1 | . 1 . Recycling Unit Hacks 1 | . 1 . Report Inventory 1 | . 1 . Scanalyzer . | . . . Garrison Access Hacks . | . . . Unauthorized Hacks 15 | . 15 . Terminals 5 | . 5 . Assimilate 1 | . 1 . Botnet 4 | . 4 . Fabricators . | . . . Repair Stations . | . . . Recycling Units . | . . . Scanalyzers . | . . . Garrison Access . | . . . Data Cores Recovered . | . . . Used . | . . . Hacking Detections 5 | . 5 . Full Trace Events . | . . . Feedback Events . | . . . Feedback Blocked . | . . . Robot Schematics Acquired . | . . . Robots Built . | . . . Matter . | . . . Time . | . . . Total Robot Build Rating . | . . . Part Schematics Acquired . | . . . Parts Built . | . . . Matter . | . . . Time . | . . . Total Part Build Rating . | . . . Parts Repaired 1 | . 1 . Time 26 | . 26 . Parts Recycled . | . . . Recycled Matter . | . . . Retrieved Matter . | . . . Retrieved Components . | . . . Parts Scanalyzed . | . . . Part Schematics Acquired . | . . . Parts Damaged . | . . . Bothacking | -11 -10 -10 ------------ Run | Scr Mat Min Used RIF Installer . | . . . Robots Hacked . | . . . Non-combat . | . . . Combat . | . . . Robot Hacks Applied . | . . . Relay Couplers Released . | . . . Robots Rewired . | . . . Allies Hacked . | . . . Hacks Repelled . | . . . Allies | -11 -10 -10 -------- Run | Scr Mat Min Total Allies 1 | . 1 . Largest Group 1 | . 1 . Highest-Rated Group 10 | . 10 . Highest-Rated Ally 10 | . 10 . Total Orders . | . . . Ally Attacks . | . . . Total Damage . | . . . Kills . | . . . Allies Corrupted . | . . . Allies Melted . | . . . Intel | -11 -10 -10 ------- Run | Scr Mat Min Robot Analysis Total . | . . . Derelict Logs Recovered 1 | . . 1 Drone Launches . | . . . Drone Recoveries . | . . . Exploration | -11 -10 -10 ------------- Run | Scr Mat Min Turns Passed 997 | 165 586 246 Spaces Moved 665 | 98 499 68 Core 15 | 15 . . Treads . | . . . Legs 7 | . . 7 Wheels 589 | 83 499 7 Hover . | . . . Flight 54 | . . 54 Fastest Speed 50 | 50 80 120 Average Speed 98 | 75 92 182 Slowest Speed 197 | 80 120 197 Overloaded Moves . | . . . Propulsion Burnouts . | . . . Robots Hopped . | . . . Cave-ins Triggered . | . . . Exploration Rate (%) 31 | 3 74 17 Regions Visited 2 Branch Regions 1 Pre-discovered Areas . | . . . Known Exits Taken 1 | . 1 . Unknown Exits Taken 1 | 1 . . Scrap Searched . | . . . Spaces Dug 3 | . 3 . Terrain Destroyed 40 | . 27 13 Melee . | . . . Projectile 3 | . 3 . AOE 37 | . 24 13 Actions | -11 -10 -10 --------- Run | Scr Mat Min Total 874 | 139 599 136 Wait 67 | . 56 11 Move 663 | 97 498 68 Hop . | . . . Pick Up 17 | 6 10 1 Fast Attach 13 | 5 5 3 Attach 1 | 1 . . Detach . | . . . Swap 17 | . 10 7 Drop 15 | 1 7 7 Fire 81 | 29 13 39 Melee . | . . . Ram . | . . . Kick . | . . . Crush . | . . . Escape Stasis . | . . . Rewire . | . . . Trap . | . . . Miscellaneous . | . . . Route ------- -11/Scrapyard -10/Materials (discovered 2 exits: [*Mat] / *Min) -10/Mines History --------- Turn | Location | Event 10 | -11/Scrapyard | Discovered new exit (range 15) 166 | -11/Scrapyard | Entered Materials 253 | -10/Materials | Identified exit to Mines 350 | -10/Materials | Build established: Mutant 358 | -10/Materials | Repaired Med. Matter Pod 407 | -10/Materials | Discovered new exit (range 11) 752 | -10/Materials | Entered Mines 753 | -10/Mines | Assembled infested the area 786 | -10/Mines | Met a Derelict bent on vengeance 843 | -10/Mines | Learned Materials stockpile data 948 | -10/Mines | Core integrity fell below 50% 990 | -10/Mines | Core integrity fell below 20% 998 | -10/Mines | Destroyed self with Mini Grenade Launcher Last Messages --------------- 00927_ Acquired 7 matter. 00934_ as-74248 destroyed. 00944_ Dropped Flight Unit. 00945_ Acquired Aluminum Leg. 00946_ Dropped Flight Unit. 00950_ Acquired Aluminum Leg. 00951_ Acquired 54 matter. 00965_ Autogun destroyed. 00969_ Destroyed Asb. Hover Unit. 00982_ as-96221 destroyed. 00986_ Acquired Particle Gun. 00987_ T-07 Excavator destroyed. 00988_ Lgt. Ion Engine destroyed. 00988_ System corrupted by crushing effect (+5). 00988_ Knocked back. 00992_ as-26024 destroyed. 00993_ Autogun destroyed. 00995_ BCZARQ: LCAU&57CZ1CESIFBJZJ/GY,YFI#/PF 00996_ Aluminum Leg destroyed. 00998_ as-36688 destroyed. Map ----- +----------------------------------------------------+ | ?????????????????????????????????????????????????? | | ?????????????????????????????????????????????????? | | ?????????????????????????????????????????????????? | | ?????????????????????????????????????????????????? | | ?????????????????????????????????????????????????? | | ?????????????????????????????????????????????????? | | ?????????????????????????????????????????????????? | | ??????????????????????????#??????????????????????? | | ???????????????????????????# ????????????????????? | | ????????????????????????### ???#???????????????? | | ???????????????????????? ????????????????????? | | ????????????????????? ?? ????????????????????? | | ??????????????????????? ??? ????????????????? | | ?????????????????? ????? ?????????????????????? | | ??????????????????????#? % ?????????????????????? | | ???????????????????????? ? ?? ????????????????? | | ??????????????????? ??### ? ? ?????#????????????? | | ????? ???????? ???#??? ??????????????????????? | | ???????????#?? #?? ??? %#??????????????????????? | | ????? ???? ## #??????# !#??????????? ?????????? | | #????????? ###????# %##??????????? ?????????? | | ?????? ??? ##??##% ##??????? ????????????? | | ?????????? #?## a #?????? ?????????????? | | ????????? ### !=*#????????? ??????????? | | ????????? % a%%##????????????????????? | | ?????????# %$ =@ #????????? ???????????? | | ???????#???# #### = #?????#???????????????? | | ?#???????### #??# ##???#?????????????????? | | ###????????# # ?????# ##???#?????????????????? | | # #??????#?# ##?????# #?????????????????????? | | ! ###?###### #???#??# #?????#?#???#?????????? | | [ #?# ##????### |##????????#????????????? | | * ##?# ##?##### # ####???????????????????? | | [ ### #### ### !=| #???#???????????????? | | ## #??## ! ## #???????????????????? | | #?#?### ######??#??#????????????????? | | ### #?????## " #??#????????????????????????? | | #?# #?#????## ##?#?????????????????????????? | | #?# ##?#????#####?#???? ?????????????????????? | | #?# #?#????????##???????? ??#????????????????? | | # ##?# #??#?????????##??????? ? ????????????????? | | ####??# #??#?????????????????????????????????????? | | ????#?? ????????#????????? ??????????????????????? | | ??????? ?#????#??????????????????????????????????? | | ???? ? ?????????????????????????????????????????? | | ??????##?????????????????????????????????????????? | | ???????????#?????????????????????????????????????? | | | | | | | +----------------------------------------------------+ Best States ------------- Heat Dissipation 25 Energy Generation 10 Energy Capacity 125 Matter Stores 300 Matter Capacity 300 Sight Range 16 Terrain Scan Range 16 Terrain Scan Density 10 Armor Coverage 150 Evasion (%) 50 Item Schematics ----------------- None Robot Schematics ------------------ None Fabricated ------------ Nothing Alien Tech Used ----------------- None Achievements -------------- None Challenges ------------ None Game ------ Seed SurveybotDisruptionBeam Manual? 0 Play Time 00:21:11 Cumulative 127.9 hours Start 2019.11.16 @ 07:24:57 End 2019.11.16 @ 07:41:42 Sessions 1 Manual Loads 0 Difficulty Rogue Special Mode None Game No. 169 Rogue 158 Adventurer 11 Explorer 0 Win Type - Total 0 Types 0/0/0/0/0/0/0 Lore% 44 Gallery% 57 Achievement% 40 Wizard Run 0 Options --------- ASCII 0 Keyboard 1 Movement Numpad Keybinds 0 Fullscreen 1 Font 12/Terminus Map View 83x54 Tactical HUD 1 Map Filters NONE Filters NONE Steam 1 RUN: 04a4fcb8-7fbc-4daf-9c47-b3f6252532d2